[Event "FIDE Open Sachove Univerzity QCC"]
[Site "Ceske Budejovice"]
[Date "2020.07.09"]
[Round "5.23"]
[White "Barth Vit"]
[Black "Frnoch, Vojtech"]
[Result "0-1"]
[ECO "A45"]
[WhiteElo "1356"]
[BlackElo "1597"]
[Annotator "NA"]
[PlyCount "64"]
[EventDate "2020.07.01"]
[EventType "swiss"]
[EventCountry "CZE"]
[TimeControl "40/5400+30:1800+30"]

1. d4 {[%emt 0:00:00]} Nf6 {[%emt 0:00:00]} 2. Bg5 {[%emt 0:00:21]} c6 {[%emt 0:00:26]} 3. c4 {[%emt 0:00:57]} d5 {[%emt 0:00:43]} 4. e3 {[%emt 0:00:52]} dxc4 {[%emt 0:00:28]} 5. Bxc4 {[%emt 0:00:16]} Qa5+ {[%emt 0:00:37]} 6. Nc3 {[%emt 0:01:22]} Qxg5 {[%emt 0:00:43]} 7. Qf3 {[%emt 0:00:52]} Qg4 {[%emt 0:01:46]} 8. h3 {[%emt 0:01:16]} Qxf3 {[%emt 0:01:06]} 9. Nxf3 {[%emt 0:00:29]} e6 {[%emt 0:00:28]} 10. e4 {[%emt 0:01:16]} Bb4 {[%emt 0:00:29]} 11. e5 {[%emt 0:01:42]} Ne4 {[%emt 0:00:41]} 12. Rc1 {[%emt 0:00:38]} Nxc3 {[%emt 0:00:25]} 13. bxc3 {[%emt 0:00:25]} Ba5 {[%emt 0:00:55]} 14. O-O {[%emt 0:00:59]} O-O {[%emt 0:01:18]} 15. Bb3 {[%emt 0:02:09]} Nd7 {[%emt 0:00:27]} 16. Nd2 {[%emt 0:01:58]} Nb6 {[%emt 0:02:49]} 17. Ne4 {[%emt 0:03:09]} Nd5 {[%emt 0:01:52]} 18. f4 {[%emt 0:02:20]} Bb6 {[%emt 0:02:46]} 19. Rf3 {[%emt 0:06:34]} Ne7 {[%emt 0:06:09]} 20. Rg3 {[%emt 0:04:46]} Nf5 {[%emt 0:02:24]} 21. Rg4 {[%emt 0:02:42]} Bd8 {[%emt 0:00:28]} 22. Nd6 {[%emt 0:03:58]} h5 {[%emt 0:01:25]} 23. Nxf5 {[%emt 0:03:41]} hxg4 {[%emt 0:00:32]} 24. Ne3 {[%emt 0:01:57]} gxh3 {[%emt 0:00:30]} 25. gxh3 {[%emt 0:00:22]} a5 {[%emt 0:00:40]} 26. Bc2 {[%emt 0:00:53]} b5 {[%emt 0:01:46]} 27. Be4 {[%emt 0:03:08]} Bb7 {[%emt 0:08:14]} 28. f5 {[%emt 0:01:39]} Bg5 {[%emt 0:00:53]} 29. Kf2 {[%emt 0:00:45]} Rab8 {[%emt 0:02:03]} 30. Rg1 {[%emt 0:00:48]} Bxe3+ {[%emt 0:05:53]} 31. Kxe3 {[%emt 0:00:30]} exf5 {[%emt 0:00:30]} 32. Bxf5 {[%emt 0:00:25]} Bc8 {[%emt 0:00:35]} 0-1

[Event "FIDE Open Sachove Univerzity QCC"]
[Site "Ceske Budejovice"]
[Date "2020.07.09"]
[Round "5.24"]
[White "Kaucky, Jaroslav"]
[Black "Gorej, Vojtech"]
[Result "1-0"]
[ECO "C36"]
[WhiteElo "1573"]
[BlackElo "1395"]
[Annotator "NA RC"]
[PlyCount "59"]
[EventDate "2020.07.01"]
[EventType "swiss"]
[EventCountry "CZE"]
[TimeControl "40/5400+30:1800+30"]

1. f4 {[%emt 0:00:00]} e5 {[%emt 0:00:52]} 2. e4 {[%emt 0:00:00]} exf4 {[%emt 0:01:08]} 3. Nf3 {[%emt 0:00:00]} d5 {[%emt 0:01:00]} 4. exd5 {[%emt 0:00:47]} Qxd5 {[%emt 0:01:00]} 5. Nc3 {[%emt 0:00:08]} Qd8 {[%emt 0:01:45]} 6. d4 {[%emt 0:00:32]} Bd6 {[%emt 0:00:45]} 7. Bc4 {[%emt 0:03:17]} Ne7 {[%emt 0:02:30]} 8. Ng5 {[%emt 0:01:58]} Ng6 {[%emt 0:08:29]} 9. Qe2+ {[%emt 0:13:16]} Qe7 {[%emt 0:08:08]} 10. Bxf7+ {[%emt 0:01:39]} Kf8 {[%emt 0:05:49]} 11. Qxe7+ {[%emt 0:00:53]} Nxe7 {[%emt 0:01:18]} 12. Be6 {[%emt 0:01:44]} Nbc6 {[%emt 0:03:24]} 13. Bxc8 {[%emt 0:02:57]} Rxc8 {[%emt 0:05:53]} 14. Nb5 {[%emt 0:04:58]} Ng6 {[%emt 0:03:22]} 15. O-O {[%emt 0:00:13]} Ke7 {[%emt 0:00:54]} 16. Nxd6 {[%emt 0:05:52]} cxd6 {[%emt 0:00:18]} 17. Bxf4 {[%emt 0:05:40]} Nxd4 {[%emt 0:04:07]} 18. Rae1+ {[%emt 0:03:28]} Kd7 {[%emt 0:05:09]} 19. c3 {[%emt 0:01:36]} Nc6 {[%emt 0:02:08]} 20. Rd1 {[%emt 0:03:43]} Nxf4 {[%emt 0:01:20]} 21. Rxf4 {[%emt 0:00:11]} Ne5 {[%emt 0:01:47]} 22. Nf7 {[%emt 0:03:10]} Nxf7 {[%emt 0:08:08]} 23. Rxf7+ {[%emt 0:03:05]} Kc6 {[%emt 0:00:30]} 24. Rxg7 {[%emt 0:00:30]} Rc7 {[%emt 0:00:51]} 25. Rg4 {[%emt 0:02:20]} h5 {[%emt 0:01:17]} 26. Rgd4 {[%emt 0:01:35]} Rd7 {[%emt 0:00:16]} 27. Rc4+ {[%emt 0:02:21]} Kb6 {[%emt 0:00:31]} 28. Rd5 {[%emt 0:01:12]} h4 {[%emt 0:01:55]} 29. h3 {[%emt 0:02:15]} a6 {[%emt 0:01:52]} 30. Rdd4 {[%emt 0:01:27]} 1-0

[Event "FIDE Open Sachove Univerzity QCC"]
[Site "Ceske Budejovice"]
[Date "2020.07.09"]
[Round "5.25"]
[White "Chmelik, Benedikt"]
[Black "Rolinkova, Adela"]
[Result "1-0"]
[ECO "B08"]
[WhiteElo "1571"]
[BlackElo "1360"]
[Annotator "NA"]
[PlyCount "89"]
[EventDate "2020.07.01"]
[EventType "swiss"]
[EventCountry "CZE"]
[TimeControl "40/5400+30:1800+30"]

1. e4 {[%emt 0:00:00]} d6 {[%emt 0:00:00]} 2. d4 {[%emt 0:00:02]} Nf6 {[%emt 0:00:00]} 3. Nc3 {[%emt 0:00:07]} g6 {[%emt 0:00:00]} 4. Nf3 {[%emt 0:00:21]} Bg7 {[%emt 0:00:00]} 5. Bc4 {[%emt 0:00:17]} O-O {[%emt 0:00:06]} 6. O-O {[%emt 0:00:17]} Nxe4 {[%emt 0:00:27]} 7. Nxe4 {[%emt 0:01:42]} d5 {[%emt 0:00:19]} 8. Bxd5 {[%emt 0:00:06]} Qxd5 {[%emt 0:00:17]} 9. Nc3 {[%emt 0:00:19]} Qd8 {[%emt 0:00:47]} 10. Be3 {[%emt 0:00:38]} Bg4 {[%emt 0:02:15]} 11. Nb5 {[%emt 0:01:10]} c6 {[%emt 0:02:20]} 12. Na3 {[%emt 0:04:19]} c5 {[%emt 0:03:38]} 13. c3 {[%emt 0:00:31]} cxd4 {[%emt 0:02:25]} 14. Bxd4 {[%emt 0:00:36]} Bxd4 {[%emt 0:03:09]} 15. Qxd4 {[%emt 0:00:14]} Bxf3 {[%emt 0:00:52]} 16. Qxd8 {[%emt 0:00:18]} Rxd8 {[%emt 0:00:12]} 17. gxf3 {[%emt 0:00:09]} Nc6 {[%emt 0:00:22]} 18. Rad1 {[%emt 0:00:37]} a6 {[%emt 0:03:10]} 19. Nc2 {[%emt 0:02:56]} b5 {[%emt 0:03:29]} 20. Ne3 {[%emt 0:06:05]} e6 {[%emt 0:03:58]} 21. Rxd8+ {[%emt 0:00:49]} Rxd8 {[%emt 0:00:14]} 22. Rd1 {[%emt 0:00:05]} Rxd1+ {[%emt 0:00:46]} 23. Nxd1 {[%emt 0:00:02]} f5 {[%emt 0:00:31]} 24. f4 {[%emt 0:00:26]} e5 {[%emt 0:00:46]} 25. fxe5 {[%emt 0:01:12]} Nxe5 {[%emt 0:00:17]} 26. Ne3 {[%emt 0:00:23]} a5 {[%emt 0:07:39]} 27. b4 {[%emt 0:02:13]} axb4 {[%emt 0:06:10]} 28. cxb4 {[%emt 0:00:53]} Kf7 {[%emt 0:00:37]} 29. Kf1 {[%emt 0:01:36]} Ke6 {[%emt 0:00:38]} 30. Ke2 {[%emt 0:00:23]} f4 {[%emt 0:01:02]} 31. Nc2 {[%emt 0:00:20]} Kd6 {[%emt 0:00:43]} 32. Nd4 {[%emt 0:01:50]} Kd5 {[%emt 0:01:23]} 33. Nxb5 {[%emt 0:00:51]} Kc4 {[%emt 0:00:22]} 34. Nc7 {[%emt 0:01:50]} Kxb4 {[%emt 0:01:55]} 35. Nd5+ {[%emt 0:00:19]} Ka3 {[%emt 0:05:17]} 36. Nxf4 {[%emt 0:03:22]} Kxa2 {[%emt 0:00:30]} 37. h3 {[%emt 0:00:30]} Kb3 {[%emt 0:00:30]} 38. Ke3 {[%emt 0:00:30]} Kc4 {[%emt 0:00:30]} 39. Ke4 {[%emt 0:00:30]} Nf7 {[%emt 0:00:30]} 40. Ne6 {[%emt 0:00:30]} h5 {[%emt 0:00:30]} 41. f4 {[%emt 0:30:30]} h4 {[%emt 0:30:30]} 42. Ng5 {[%emt 0:00:30]} Nd6+ {[%emt 0:15:59]} 43. Ke5 {[%emt 0:00:14]} Ne8 {[%emt 0:00:48]} 44. Nf3 {[%emt 0:00:53]} Kd3 {[%emt 0:00:54]} 45. Nxh4 {[%emt 0:00:26]} 1-0

[Event "FIDE Open Sachove Univerzity QCC"]
[Site "Ceske Budejovice"]
[Date "2020.07.10"]
[Round "5.26"]
[White "Pokora, Lubomir"]
[Black "Vojtek, Pavel"]
[Result "1-0"]
[ECO "A48"]
[WhiteElo "1800"]
[BlackElo "1292"]
[Annotator "NA RC"]
[PlyCount "61"]
[EventDate "2020.07.01"]
[EventType "swiss"]
[EventCountry "CZE"]
[TimeControl "40/5400+30:1800+30"]

1. d4 {[%emt 0:00:00]} Nf6 {[%emt 0:00:00]} 2. Nf3 {[%emt 0:00:00]} d6 {[%emt 0:00:28]} 3. e3 {[%emt 0:00:27]} g6 {[%emt 0:00:18]} 4. Bd3 {[%emt 0:01:37]} Bg7 {[%emt 0:01:02]} 5. Nbd2 {[%emt 0:00:33]} O-O {[%emt 0:00:31]} 6. c3 {[%emt 0:00:57]} Re8 {[%emt 0:00:52]} 7. e4 {[%emt 0:05:08]} e5 {[%emt 0:04:17]} 8. O-O {[%emt 0:02:00]} Nc6 {[%emt 0:03:00]} 9. d5 {[%emt 0:04:10]} Ne7 {[%emt 0:00:22]} 10. Re1 {[%emt 0:02:37]} a6 {[%emt 0:02:35]} 11. Nf1 {[%emt 0:02:12]} Nexd5 {[%emt 0:11:24]} 12. exd5 {[%emt 0:06:04]} e4 {[%emt 0:00:24]} 13. Be2 {[%emt 0:02:37]} exf3 {[%emt 0:01:05]} 14. Bxf3 {[%emt 0:00:17]} b5 {[%emt 0:04:49]} 15. Bf4 {[%emt 0:14:59]} Bb7 {[%emt 0:02:37]} 16. Ne3 {[%emt 0:03:19]} Qd7 {[%emt 0:01:46]} 17. a4 {[%emt 0:03:21]} Re7 {[%emt 0:02:47]} 18. Qb3 {[%emt 0:03:10]} Ne4 {[%emt 0:13:48]} 19. axb5 {[%emt 0:26:09]} Nd2 {[%emt 0:02:14]} 20. Qd1 {[%emt 0:00:57]} Nxf3+ {[%emt 0:00:18]} 21. Qxf3 {[%emt 0:08:55]} Qxb5 {[%emt 0:00:31]} 22. c4 {[%emt 0:00:30]} Qb4 {[%emt 0:01:13]} 23. Rab1 {[%emt 0:01:33]} Rae8 {[%emt 0:01:50]} 24. h4 {[%emt 0:01:12]} Bd4 {[%emt 0:02:58]} 25. b3 {[%emt 0:00:36]} Bc8 {[%emt 0:03:41]} 26. Red1 {[%emt 0:02:29]} Bxe3 {[%emt 0:00:54]} 27. Bxe3 {[%emt 0:00:58]} Re4 {[%emt 0:03:16]} 28. Qf6 {[%emt 0:01:28]} Bf5 {[%emt 0:03:19]} 29. Bh6 {[%emt 0:01:02]} Re1+ {[%emt 0:00:10]} 30. Kh2 {[%emt 0:00:30]} Qc3 {[%emt 0:03:23]} 31. Qxc3 {[%emt 0:00:20]} 1-0

[Event "FIDE Open Sachove Univerzity QCC"]
[Site "Ceske Budejovice"]
[Date "2020.07.10"]
[Round "5.27"]
[White "Krautschneider, Daniel Jan"]
[Black "Jodas, Daniel"]
[Result "0-1"]
[ECO "B01"]
[WhiteElo "1374"]
[BlackElo "1608"]
[Annotator "NA RC"]
[PlyCount "72"]
[EventDate "2020.07.01"]
[EventType "swiss"]
[EventCountry "CZE"]
[TimeControl "40/5400+30:1800+30"]

1. e4 {[%emt 0:00:00]} d5 {[%emt 0:00:00]} 2. exd5 {[%emt 0:00:01]} Qxd5 {[%emt 0:00:00]} 3. Nc3 {[%emt 0:00:08]} Qa5 {[%emt 0:00:00]} 4. d4 {[%emt 0:00:10]} Nf6 {[%emt 0:00:01]} 5. Nf3 {[%emt 0:00:12]} Bg4 {[%emt 0:00:58]} 6. Be2 {[%emt 0:00:25]} Nc6 {[%emt 0:01:01]} 7. Be3 {[%emt 0:01:04]} O-O-O {[%emt 0:01:11]} 8. Qd2 {[%emt 0:00:29]} Bxf3 {[%emt 0:01:36]} 9. Bxf3 {[%emt 0:00:16]} Nxd4 {[%emt 0:01:21]} 10. Bxd4 {[%emt 0:01:54]} e5 {[%emt 0:00:18]} 11. O-O-O {[%emt 0:02:18]} exd4 {[%emt 0:01:17]} 12. Nb1 {[%emt 0:03:29]} Bb4 {[%emt 0:01:11]} 13. Qf4 {[%emt 0:04:56]} d3 {[%emt 0:24:18]} 14. Rxd3 {[%emt 0:04:08]} Rxd3 {[%emt 0:03:38]} 15. cxd3 {[%emt 0:02:20]} Qc5+ {[%emt 0:00:30]} 16. Qc4 {[%emt 0:00:30]} Rd8 {[%emt 0:01:11]} 17. Kc2 {[%emt 0:02:06]} Qxf2+ {[%emt 0:02:27]} 18. Kb3 {[%emt 0:01:54]} Ba5 {[%emt 0:05:29]} 19. Qb5 {[%emt 0:09:41]} Qb6 {[%emt 0:03:32]} 20. Qxb6 {[%emt 0:00:54]} Bxb6 {[%emt 0:00:08]} 21. Kc4 {[%emt 0:01:59]} Rd4+ {[%emt 0:01:24]} 22. Kc3 {[%emt 0:00:37]} Nd5+ {[%emt 0:01:08]} 23. Bxd5 {[%emt 0:01:10]} Rxd5 {[%emt 0:00:05]} 24. Nd2 {[%emt 0:00:14]} Kd7 {[%emt 0:07:37]} 25. Nc4 {[%emt 0:01:17]} Rf5 {[%emt 0:03:38]} 26. Nxb6+ {[%emt 0:00:47]} axb6 {[%emt 0:00:09]} 27. h3 {[%emt 0:00:22]} Rf2 {[%emt 0:00:18]} 28. g4 {[%emt 0:00:07]} f5 {[%emt 0:00:54]} 29. gxf5 {[%emt 0:00:24]} Rxf5 {[%emt 0:00:03]} 30. Rg1 {[%emt 0:00:13]} g6 {[%emt 0:00:06]} 31. a4 {[%emt 0:05:23]} Rf3 {[%emt 0:00:40]} 32. Rh1 {[%emt 0:06:16]} Kd6 {[%emt 0:00:13]} 33. Kc4 {[%emt 0:01:06]} h6 {[%emt 0:02:25]} 34. h4 {[%emt 0:00:22]} Rf4+ {[%emt 0:00:40]} 35. d4 {[%emt 0:00:09]} Rg4 {[%emt 0:00:55]} 36. b4 {[%emt 0:04:56]} c5 {[%emt 0:01:18]} 0-1

[Event "FIDE Open Sachove Univerzity QCC"]
[Site "Ceske Budejovice"]
[Date "2020.07.10"]
[Round "5.28"]
[White "Veselsky, Jan"]
[Black "Dobsinsky, Petr"]
[Result "1-0"]
[ECO "E43"]
[WhiteElo "1580"]
[BlackElo "1248"]
[Annotator "NA RC"]
[PlyCount "49"]
[EventDate "2020.07.01"]
[EventType "swiss"]
[EventCountry "CZE"]
[TimeControl "40/5400+30:1800+30"]

1. d4 {[%emt 0:00:00]} Nf6 {[%emt 0:00:00]} 2. c4 {[%emt 0:00:00]} e6 {[%emt 0:00:00]} 3. Nc3 {[%emt 0:00:00]} Bb4 {[%emt 0:00:09]} 4. Nf3 {[%emt 0:00:00]} b6 {[%emt 0:00:29]} 5. e3 {[%emt 0:00:32]} O-O {[%emt 0:00:47]} 6. Bd3 {[%emt 0:00:13]} Bxc3+ {[%emt 0:00:44]} 7. bxc3 {[%emt 0:00:13]} d6 {[%emt 0:00:07]} 8. a4 {[%emt 0:01:35]} a5 {[%emt 0:00:20]} 9. Ba3 {[%emt 0:01:07]} Bb7 {[%emt 0:01:11]} 10. O-O {[%emt 0:01:15]} Nbd7 {[%emt 0:00:28]} 11. Rb1 {[%emt 0:02:42]} Re8 {[%emt 0:00:44]} 12. c5 {[%emt 0:02:11]} dxc5 {[%emt 0:00:47]} 13. dxc5 {[%emt 0:00:25]} Nxc5 {[%emt 0:00:31]} 14. Bc2 {[%emt 0:14:46]} Qxd1 {[%emt 0:04:09]} 15. Rfxd1 {[%emt 0:00:39]} Bxf3 {[%emt 0:00:51]} 16. gxf3 {[%emt 0:00:07]} Nb7 {[%emt 0:04:42]} 17. e4 {[%emt 0:05:34]} Rad8 {[%emt 0:02:26]} 18. Rd4 {[%emt 0:06:08]} Rxd4 {[%emt 0:02:51]} 19. cxd4 {[%emt 0:00:13]} g6 {[%emt 0:01:49]} 20. Rc1 {[%emt 0:04:03]} Nd6 {[%emt 0:04:08]} 21. Bd3 {[%emt 0:04:53]} Nc8 {[%emt 0:03:52]} 22. Rxc7 {[%emt 0:03:40]} Nh5 {[%emt 0:01:03]} 23. Bc1 {[%emt 0:01:31]} Ne7 {[%emt 0:01:28]} 24. Bh6 {[%emt 0:12:48]} Ng7 {[%emt 0:01:45]} 25. Bb5 {[%emt 0:01:54]} 1-0

[Event "FIDE Open Sachove Univerzity QCC"]
[Site "Ceske Budejovice"]
[Date "2020.07.10"]
[Round "5.29"]
[White "Predota, Vit"]
[Black "Martirosyan, David"]
[Result "0-1"]
[ECO "B13"]
[WhiteElo "1233"]
[BlackElo "1560"]
[Annotator "NA RC"]
[PlyCount "110"]
[EventDate "2020.07.01"]
[EventType "swiss"]
[EventCountry "CZE"]
[TimeControl "40/5400+30:1800+30"]

1. e4 {[%emt 0:00:00]} c6 {[%emt 0:00:03]} 2. d4 {[%emt 0:00:00]} d5 {[%emt 0:00:14]} 3. exd5 {[%emt 0:00:00]} cxd5 {[%emt 0:00:11]} 4. Nc3 {[%emt 0:00:37]} Nf6 {[%emt 0:01:56]} 5. Bf4 {[%emt 0:01:40]} a6 {[%emt 0:02:36]} 6. Nf3 {[%emt 0:02:18]} Bf5 {[%emt 0:02:57]} 7. Bd3 {[%emt 0:00:46]} Bxd3 {[%emt 0:02:51]} 8. Qxd3 {[%emt 0:00:14]} Nc6 {[%emt 0:01:07]} 9. O-O-O {[%emt 0:03:09]} e6 {[%emt 0:00:48]} 10. Bg5 {[%emt 0:02:01]} Be7 {[%emt 0:02:56]} 11. Bxf6 {[%emt 0:00:44]} Bxf6 {[%emt 0:01:15]} 12. a3 {[%emt 0:03:17]} O-O {[%emt 0:02:21]} 13. Rde1 {[%emt 0:02:58]} Qb6 {[%emt 0:09:46]} 14. Ne5 {[%emt 0:01:37]} Bxe5 {[%emt 0:04:38]} 15. dxe5 {[%emt 0:00:18]} Qxf2 {[%emt 0:02:33]} 16. Re2 {[%emt 0:09:48]} Qf4+ {[%emt 0:02:34]} 17. Kb1 {[%emt 0:02:06]} Nxe5 {[%emt 0:01:20]} 18. Qe3 {[%emt 0:04:23]} Qxe3 {[%emt 0:01:48]} 19. Rxe3 {[%emt 0:00:17]} Nc4 {[%emt 0:00:06]} 20. Rd3 {[%emt 0:00:18]} b5 {[%emt 0:02:25]} 21. Rd4 {[%emt 0:00:58]} Rab8 {[%emt 0:02:06]} 22. Ka2 {[%emt 0:00:45]} a5 {[%emt 0:01:38]} 23. Nxd5 {[%emt 0:01:23]} exd5 {[%emt 0:01:30]} 24. Rxd5 {[%emt 0:00:12]} Rfd8 {[%emt 0:01:10]} 25. Rhd1 {[%emt 0:00:41]} Rxd5 {[%emt 0:02:06]} 26. Rxd5 {[%emt 0:00:12]} Ne3 {[%emt 0:00:31]} 27. Rd2 {[%emt 0:00:17]} f6 {[%emt 0:00:32]} 28. Re2 {[%emt 0:00:16]} Ng4 {[%emt 0:00:15]} 29. h3 {[%emt 0:00:11]} Ne5 {[%emt 0:00:05]} 30. c3 {[%emt 0:01:45]} Rc8 {[%emt 0:02:23]} 31. Re4 {[%emt 0:01:09]} Rc4 {[%emt 0:01:23]} 32. Rxc4 {[%emt 0:01:18]} bxc4 {[%emt 0:01:46]} 33. b3 {[%emt 0:00:06]} cxb3+ {[%emt 0:24:01]} 34. Kxb3 {[%emt 0:00:25]} Kf7 {[%emt 0:01:33]} 35. Ka4 {[%emt 0:00:23]} Nc4 {[%emt 0:00:29]} 36. Kb3 {[%emt 0:00:31]} Nb6 {[%emt 0:02:47]} 37. c4 {[%emt 0:00:20]} Ke7 {[%emt 0:02:31]} 38. c5 {[%emt 0:00:18]} Nd5 {[%emt 0:01:05]} 39. Kc4 {[%emt 0:00:56]} Nc7 {[%emt 0:00:12]} 40. a4 {[%emt 0:00:31]} Kd7 {[%emt 0:00:45]} 41. h4 {[%emt 0:31:16]} Kc6 {[%emt 0:30:02]} 42. Kd4 {[%emt 0:00:53]} Ne6+ {[%emt 0:00:12]} 43. Ke4 {[%emt 0:01:29]} Nxc5+ {[%emt 0:01:30]} 44. Kf5 {[%emt 0:00:42]} Nxa4 {[%emt 0:00:07]} 45. Ke6 {[%emt 0:00:00]} Nc5+ {[%emt 0:00:24]} 46. Kf7 {[%emt 0:00:02]} a4 {[%emt 0:00:30]} 47. Kxg7 {[%emt 0:00:08]} a3 {[%emt 0:00:07]} 48. h5 {[%emt 0:00:10]} a2 {[%emt 0:01:33]} 49. h6 {[%emt 0:00:45]} a1=Q {[%emt 0:00:29]} 50. Kxh7 {[%emt 0:00:17]} f5 {[%emt 0:00:34]} 51. Kg8 {[%emt 0:01:14]} Ne6 {[%emt 0:00:54]} 52. Kh7 {[%emt 0:00:27]} Qf6 {[%emt 0:01:11]} 53. g3 {[%emt 0:00:31]} Ng5+ {[%emt 0:00:03]} 54. Kg8 {[%emt 0:00:23]} Qf7+ {[%emt 0:00:05]} 55. Kh8 {[%emt 0:00:17]} Qh7# {[%emt 0:00:06]} 0-1

[Event "FIDE Open Sachove Univerzity QCC"]
[Site "Ceske Budejovice"]
[Date "2020.07.06"]
[Round "6.1"]
[White "Simacek, Vaclav"]
[Black "Svanda, Adam"]
[Result "0-1"]
[ECO "B01"]
[WhiteElo "1816"]
[BlackElo "1870"]
[Annotator "NA"]
[PlyCount "98"]
[EventDate "2020.07.01"]
[EventType "swiss"]
[EventCountry "CZE"]
[SourceTitle "playchess.com"]
[Source "ChessBase"]
[SourceQuality "1"]
[TimeControl "40/5400+30:1800+30"]

1. e4 {[%emt 0:00:00]} d5 {[%emt 0:00:00]} 2. exd5 {[%emt 0:00:10]} Qxd5 {[%emt 0:00:12]} 3. Nc3 {[%emt 0:00:10]} Qd6 {[%emt 0:00:14]} 4. d4 {[%emt 0:00:22]} Nf6 {[%emt 0:00:37]} 5. Nf3 {[%emt 0:00:42]} a6 {[%emt 0:00:43]} 6. Bd3 {[%emt 0:02:12] B01: Scandinavian Defence.} g6 {[%emt 0:01:11] was the old line (6...Bg4).} 7. O-O {[%emt 0:00:39]} Bg7 {[%emt 0:00:34] [#]} 8. Ne5 $146 {[%emt 0:08:42]} ({Predecessor:} 8. Re1 O-O 9. Ne4 Nxe4 10. Bxe4 Nd7 11. c3 Nf6 12. Bc2 c5 13. dxc5 Qxc5 14. Be3 {1-0 (36) Muzychuk,A (2545)-Zhao,X (2514) Beijing 2014}) 8... O-O {[%emt 0:08:18]} 9. Be3 {[%emt 0:00:10]} Nc6 {[%emt 0:03:03]} 10. Nxc6 {[%emt 0:11:35]} Qxc6 {[%emt 0:00:19]} 11. Be2 {[%emt 0:02:10]} Rd8 {[%emt 0:01:45]} 12. Bf3 {[%emt 0:00:34]} Qd6 {[%emt 0:02:44]} 13. Qe2 {[%emt 0:01:55]} c6 {[%emt 0:03:45]} 14. d5 {[%emt 0:07:28]} (14. Rad1 $11 {remains equal.}) 14... Nxd5 {[%emt 0:04:33]} 15. Nxd5 {[%emt 0:01:51]} cxd5 {[%emt 0:00:48]} 16. Rfd1 {[%emt 0:01:04]} e6 {[%emt 0:04:19]} ({But not} 16... Bxb2 $6 17. Rab1 $11) 17. Rac1 {[%emt 0:06:09]} (17. Bg5 $17) 17... b5 {[%emt 0:13:31]} 18. c3 {[%emt 0:00:51]} Bb7 {[%emt 0:01:10]} 19. Bg5 {[%emt 0:01:01]} Rdc8 {[%emt 0:01:18]} 20. Rd3 {[%emt 0:03:30]} (20. a3 $17 {was worth a try.}) 20... a5 {[%emt 0:02:23]} 21. Qd2 {[%emt 0:07:16]} Ba6 {[%emt 0:01:57]} 22. b3 {[%emt 0:00:51]} Qf8 {[%emt 0:01:20]} 23. h4 {[%emt 0:00:50]} Rab8 {[%emt 0:10:02]} 24. h5 {[%emt 0:05:19]} b4 {[%emt 0:01:34]} 25. c4 {[%emt 0:00:18]} dxc4 {[%emt 0:01:10]} 26. Rd7 {[%emt 0:02:12]} c3 {[%emt 0:07:21]} 27. Qe3 {[%emt 0:04:44]} Bb5 {[%emt 0:03:57]} 28. Ra7 {[%emt 0:02:43]} Bc6 {[%emt 0:01:01]} 29. h6 {[%emt 0:02:52]} Bh8 {[%emt 0:00:41]} 30. Be7 {[%emt 0:00:24]} Qe8 {[%emt 0:01:02]} 31. Bd6 {[%emt 0:02:32]} Rb5 {[%emt 0:07:01]} 32. Re7 {[%emt 0:03:32]} Qd8 {[%emt 0:00:19]} 33. Rxe6 {[%emt 0:00:48]} Bxf3 {[%emt 0:02:52]} 34. Bc7 {[%emt 0:05:29]} Qd7 {[%emt 0:01:29]} 35. Re7 {[%emt 0:00:29]} Qc6 {[%emt 0:01:30]} 36. Re1 {[%emt 0:00:05]} f5 {[%emt 0:03:40]} 37. Re6 {[%emt 0:08:29]} Re5 {[%emt 0:04:33]} 38. Rxe5 {[%emt 0:03:41]} Bxe5 {[%emt 0:00:52]} 39. Bxe5 $19 {[%emt 0:01:42]} (39. Qxe5 $11 {and White stays safe.} Rxc7 40. gxf3) 39... Bxg2 {[%emt 0:00:18]} 40. Qa7 {[%emt 0:01:02]} Qb7 {[%emt 0:00:30]} 41. Qe3 {[%emt 0:32:35]} Qe4 {[%emt 0:33:49]} 42. Qxe4 {[%emt 0:00:00]} Bxe4 {[%emt 0:00:00]} 43. Kh2 {[%emt 0:00:00]} Rd8 {[%emt 0:00:00]} 44. Bf4 {[%emt 0:00:00]} Kf7 {[%emt 0:00:00]} 45. Bg5 {[%emt 0:00:00]} Rd3 {[%emt 0:00:00]} 46. Kg1 {[%emt 0:00:00]} Rh3 {[%emt 0:00:00]} 47. f3 {[%emt 0:00:00]} Rxf3 {[%emt 0:00:00]} 48. Re3 {[%emt 0:00:00]} Rxe3 {[%emt 0:00:00]} 49. Bxe3 {[%emt 0:00:00]} Bb1 {[%emt 0:00:00]} 0-1

[Event "FIDE Open Sachove Univerzity QCC"]
[Site "Ceske Budejovice"]
[Date "2020.07.06"]
[Round "6.1"]
[White "Zezula, Matej"]
[Black "Kral, Ladislav"]
[Result "1/2-1/2"]
[ECO "C01"]
[WhiteElo "1125"]
[BlackElo "1493"]
[Annotator "NA"]
[PlyCount "77"]
[EventDate "2020.07.01"]
[EventType "swiss"]
[EventCountry "CZE"]
[SourceTitle "playchess.com"]
[Source "ChessBase"]
[SourceQuality "1"]
[TimeControl "40/5400+30:1800+30"]

1. e4 {[%emt 0:00:00]} e6 {[%emt 0:00:00]} 2. d4 {[%emt 0:00:00]} d5 {[%emt 0:00:00]} 3. exd5 {[%emt 0:00:00]} exd5 {[%emt 0:00:00]} 4. c4 {[%emt 0:00:00]} Nf6 {[%emt 0:10:24]} 5. Nf3 {[%emt 0:01:00]} Bb4+ {[%emt 0:05:33]} 6. Nc3 {[%emt 0:01:33]} O-O {[%emt 0:04:13]} 7. Be2 {[%emt 0:04:50]} dxc4 {[%emt 0:00:39]} 8. Bxc4 {[%emt 0:01:42]} Re8+ {[%emt 0:06:38]} 9. Be3 {[%emt 0:08:38]} Be6 {[%emt 0:02:59]} 10. Bxe6 {[%emt 0:02:58]} Rxe6 {[%emt 0:00:53]} 11. O-O {[%emt 0:00:33]} Nd5 {[%emt 0:09:36]} 12. Qb3 {[%emt 0:07:39]} Bxc3 {[%emt 0:08:24]} 13. bxc3 {[%emt 0:02:08]} Nxe3 {[%emt 0:07:42]} 14. fxe3 {[%emt 0:00:31]} Rb6 {[%emt 0:09:36]} 15. Qc2 {[%emt 0:03:15]} Nd7 {[%emt 0:02:23]} 16. Rac1 {[%emt 0:04:02]} Qe7 {[%emt 0:03:26]} 17. e4 {[%emt 0:05:03]} f6 {[%emt 0:01:31]} 18. c4 {[%emt 0:04:27]} Re6 {[%emt 0:02:54]} 19. Rfe1 {[%emt 0:01:40]} Re8 {[%emt 0:00:55]} 20. Nd2 {[%emt 0:02:54]} f5 {[%emt 0:03:00]} 21. e5 {[%emt 0:02:42]} c5 {[%emt 0:02:17]} 22. Nf3 {[%emt 0:05:06]} cxd4 {[%emt 0:01:14]} 23. Nxd4 {[%emt 0:02:04]} Rxe5 {[%emt 0:01:09]} 24. Rxe5 {[%emt 0:01:13]} Qxe5 {[%emt 0:00:30]} 25. Nxf5 {[%emt 0:07:04]} g6 {[%emt 0:00:35]} 26. Nh6+ {[%emt 0:05:11]} Kg7 {[%emt 0:00:15]} 27. Ng4 {[%emt 0:01:49]} Qd4+ {[%emt 0:02:01]} 28. Nf2 {[%emt 0:01:48]} Qe3 {[%emt 0:00:50]} 29. h3 {[%emt 0:01:17]} Qe2 {[%emt 0:02:20]} 30. Qc3+ {[%emt 0:03:42]} Qe5 {[%emt 0:00:17]} 31. Qb4 {[%emt 0:02:00]} b6 {[%emt 0:00:41]} 32. Qa4 {[%emt 0:02:50]} Qc7 {[%emt 0:01:54]} 33. Ng4 {[%emt 0:01:26]} h5 {[%emt 0:03:11]} 34. Nf2 {[%emt 0:01:37]} Rf8 {[%emt 0:01:05]} 35. Qc2 Qc5 {[%emt 0:01:03]} 36. Rd1 {[%emt 0:02:36]} Re8 37. Qa4 Qc7 38. Rc1 Re7 39. Ra1 1/2-1/2